bitfinex-derivatives/quotes_BNBF0:USTF0_20260110
["timestamp","ask_amount","ask_price","bid_price","bid_amount"]
[1768037370860,0.19288755,902.71,901.16,0.69404664]
[1768037371060,0.19288755,902.71,901.17,0.69404664]
[1768037371260,0.19288755,902.71,901.18,0.69404664]
[1768037371458,0.19288755,902.71,901.19,0.69404664]
[1768037371761,0.19288755,902.71,901.2,0.69404664]
[1768037371959,0.19288755,902.71,901.21,0.69404664]
[1768037372159,0.19288755,902.71,901.1,4.16709776]
[1768037372359,0.19288755,902.71,901.11,0.69416426]
[1768037372562,0.19288755,902.71,901.12,0.69416426]
[1768037372863,0.19288755,902.71,901.13,0.69416426]
[1768037373063,0.19288755,902.71,901.14,0.69416426]
[1768037373262,0.19288755,902.71,901.15,0.69416426]
[1768037373460,0.19288755,902.71,901.16,0.69416426]
[1768037373660,0.19288755,902.71,901.17,0.69416426]
[1768037373860,0.19288755,902.71,901.18,0.69416426]
[1768037374159,0.19288755,902.71,901.19,0.69416426]
[1768037374364,0.19288755,902.71,901.2,0.69416426]
[1768037374562,0.19288755,902.71,901.21,0.69416426]
[1768037374761,0.19288755,902.71,901.1,4.16709776]
[1768037374963,0.19288755,902.71,901.11,0.69426163]
[1768037375167,0.19288755,902.71,901.12,0.69426163]
[1768037375364,0.19288755,902.71,901.13,0.69426163]
[1768037375563,0.19288755,902.71,901.1,4.16709776]
[1768037375564,0.19288755,902.71,901.14,0.69426163]
[1768037375767,0.19288755,902.71,901.15,0.69426163]
[1768037375966,0.19288755,902.71,901.16,0.69426163]
[1768037376268,0.19288755,902.71,901.17,0.69426163]
[1768037376468,0.19288755,902.71,901.18,0.69426163]
[1768037376666,0.19288755,902.71,901.19,0.69426163]
[1768037376866,0.19288755,902.71,901.2,0.69426163]
[1768037377067,0.19288755,902.71,901.21,0.69426163]
[1768037377370,0.19288755,902.71,901.1,4.16709776]
[1768037377565,0.19288755,902.71,901.11,0.69432429]
[1768037377767,0.19288755,902.71,901.12,0.69432429]
[1768037377964,0.19288755,902.71,901.13,0.69432429]
[1768037378169,0.19288755,902.71,901.14,0.69432429]
[1768037378367,0.19288755,902.71,901.15,0.69432429]
[1768037378670,0.19288755,902.71,901.16,0.69432429]
[1768037378868,0.19288755,902.71,901.17,0.69432429]
[1768037379065,0.19288755,902.71,901.18,0.69432429]
[1768037379271,0.19288755,902.71,901.19,0.69432429]
[1768037379469,0.19288755,902.71,901.2,0.69432429]
[1768037379670,0.19288755,902.71,901.21,0.69432429]
[1768037379870,0.19288755,902.71,901.1,4.16709776]
[1768037380068,0.19288755,902.71,901.11,0.69433104]
[1768037380272,0.19288755,902.71,901.12,0.69433104]
[1768037380471,0.19288755,902.71,901.13,0.69433104]
[1768037380670,0.19288755,902.71,901.14,0.69433104]
[1768037380869,0.19288755,902.71,901.15,0.69433104]
[1768037381070,0.19288755,902.71,901.16,0.69433104]
[1768037381273,0.19288755,902.71,901.17,0.69433104]
[1768037381473,0.19288755,902.71,901.18,0.69433104]
[1768037381672,0.19288755,902.71,901.19,0.69433104]
[1768037381871,0.19288755,902.71,901.2,0.69433104]
[1768037382170,0.19288755,902.71,901.21,0.69433104]
[1768037382372,0.19288755,902.71,901.1,4.16709776]
[1768037382570,0.19288755,902.71,901.11,0.69434188]
[1768037382775,0.19288755,902.71,901.12,0.69434188]
[1768037383070,0.19288755,902.71,901.13,0.69434188]
[1768037383275,2.7494907,902.64,901.1,4.16709776]
[1768037388180,2.7494907,902.64,901.11,0.69439377]
[1768037388382,2.7494907,902.64,901.1,4.16709776]
[1768037388579,2.7494907,902.63,901.11,0.69439377]
[1768037388780,2.7494907,902.63,901.1,4.16709776]
[1768037389084,2.7494907,902.63,901.11,0.69439377]
[1768037389282,2.7494907,902.63,901.1,4.16709776]
[1768037389579,2.7494907,902.63,901.11,0.6944228]
[1768037389782,2.7494907,902.63,901.1,4.16709776]
[1768037389983,2.7494907,902.63,901.11,0.6944228]
[1768037390182,2.7494907,902.63,901.1,4.16709776]
[1768037390381,2.7494907,902.63,901.11,0.69445391]
[1768037390584,2.7494907,902.63,901.1,4.16709776]
[1768037390785,2.7494907,902.63,901.11,0.69445391]
[1768037390982,2.7494907,902.63,901.1,4.16709776]
[1768037391282,2.7494907,902.63,900.74,0.83231622]
[1768037391487,2.7494907,902.63,900.75,0.69457923]
[1768037391686,2.7494907,902.34,900.76,0.69457923]
[1768037391986,2.7494907,902.34,900.77,0.69457923]
[1768037392187,2.7494907,902.41,900.78,0.69457923]
[1768037392381,2.7494907,902.41,900.79,0.69457923]
[1768037392586,2.7494907,902.41,900.8,0.69457923]
[1768037392785,2.7494907,902.43,900.81,0.69457923]
[1768037392985,2.7494907,902.43,900.82,0.69457923]
[1768037393186,2.7494907,902.43,900.83,0.69457923]
[1768037393486,2.7494907,902.43,900.84,0.69457923]
[1768037393684,2.7494907,902.57,900.85,0.69457923]
[1768037393885,2.7494907,902.57,900.69,0.83231622]
[1768037393886,2.7494907,902.57,900.86,0.69457923]
[1768037394089,2.7494907,902.57,900.87,0.69457923]
[1768037394286,2.7494907,902.58,900.88,0.69457923]
[1768037394484,2.7494907,902.58,900.89,0.69457923]
[1768037394689,2.7494907,902.58,900.9,0.69457923]
[1768037394886,2.7494907,902.58,900.91,0.69457923]
[1768037395091,2.7494907,902.58,900.92,0.69457923]
[1768037395286,2.7494907,902.59,900.93,0.69457923]
[1768037395586,2.7494907,902.59,900.94,0.69457923]
[1768037395785,2.7494907,902.59,900.95,0.69457923]
[1768037395990,2.7494907,902.59,900.96,0.69457923]
[1768037396286,2.7494907,902.6,900.66,0.83231622]
[1768037396586,2.7494907,902.6,900.67,0.69345212]
[1768037396789,2.7494907,902.6,900.68,0.69345212]
[1768037396990,2.7494907,902.6,900.69,0.69345212]
[1768037397286,2.7494907,902.6,900.7,0.69345212]
[1768037397490,2.7494907,902.61,900.71,0.69345212]
[1768037397790,2.7494907,902.61,900.72,0.69345212]
[1768037397987,2.7494907,902.61,900.73,0.69345212]
[1768037398187,2.7494907,902.61,900.74,0.69345212]
[1768037398487,2.7494907,902.61,900.75,0.69345212]
[1768037398686,2.7494907,902.61,900.76,0.69345212]
[1768037398890,2.7494907,902.61,900.77,0.69345212]
[1768037399087,2.7494907,902.61,900.78,0.69345212]
[1768037399291,2.7494907,902.61,900.79,0.69345212]
[1768037399493,2.7494907,902.61,900.8,0.69345212]
[1768037399692,2.7494907,902.61,900.81,0.69345212]
[1768037399892,2.7494907,902.61,900.82,0.69345212]
[1768037400092,2.7494907,902.61,900.83,0.69345212]
[1768037400293,2.7494907,902.61,900.84,0.69345212]
[1768037400492,2.7494907,902.61,900.85,0.69345212]
[1768037400791,2.7494907,902.61,900.86,0.69345212]
[1768037400990,2.7494907,902.61,900.87,0.69345212]
[1768037401290,2.7494907,902.61,900.88,0.69345212]
[1768037401490,2.7494907,902.61,900.89,0.69345212]
[1768037401692,2.7494907,902.61,900.9,0.69345212]
[1768037401890,2.7494907,902.61,900.91,0.69345212]
[1768037402092,2.7494907,902.62,900.92,0.69345212]
[1768037402391,2.7494907,902.62,900.93,0.69345212]
[1768037402693,2.7494907,902.62,900.64,0.83231622]
[1768037402894,2.7494907,902.62,900.65,0.69311892]
[1768037403093,2.7494907,902.62,900.66,0.69311892]
[1768037403292,2.7494907,902.62,900.67,0.69311892]
[1768037403496,2.7494907,902.62,900.68,0.69307153]
[1768037403692,2.7494907,902.6,900.69,0.69307153]
[1768037403896,2.7494907,902.6,900.7,0.69307153]
[1768037404097,2.7494907,902.6,900.62,0.83084117]
[1768037404098,2.7494907,902.6,900.71,0.69307153]
[1768037404397,2.7494907,902.6,900.72,0.69307153]
[1768037404593,2.7494907,902.6,900.73,0.69307153]
[1768037404798,2.7494907,902.6,900.74,0.69307153]
[1768037404999,2.7494907,902.6,900.75,0.69307153]
[1768037405199,2.7494907,902.6,900.76,0.69307153]
[1768037405396,2.7494907,902.6,900.77,0.69307153]
[1768037405599,2.7494907,902.6,900.78,0.69307153]
[1768037405896,2.7494907,902.6,900.79,0.69307153]
[1768037406097,2.7494907,902.6,900.8,0.69307153]
[1768037406296,2.7494907,902.61,900.81,0.69307153]
[1768037406500,2.7494907,902.61,900.82,0.69307153]
[1768037406695,2.7494907,902.61,900.83,0.69307153]
[1768037406998,2.7494907,902.57,900.84,0.69307153]
[1768037407199,2.7494907,902.57,900.85,0.69307153]
[1768037407400,2.7494907,902.58,900.86,0.69307153]
[1768037407595,2.7494907,902.58,900.58,0.83084117]
[1768037407800,2.7494907,902.58,900.59,0.69288267]
[1768037408097,2.7494907,902.58,900.6,0.69288267]
[1768037408296,2.7494907,902.58,900.61,0.69288267]
[1768037408501,2.7494907,902.58,900.62,0.69288267]
[1768037408698,2.7494907,902.58,900.63,0.69288267]
[1768037408999,2.7494907,902.58,900.64,0.69288267]
[1768037409202,2.7494907,902.58,900.65,0.69288267]
[1768037409402,2.7494907,902.58,900.66,0.69288267]
[1768037409699,2.7494907,902.58,900.67,0.69288267]
[1768037409901,2.7494907,902.56,900.68,0.69288267]
[1768037410098,2.7494907,902.56,900.69,0.69288267]
[1768037410402,2.7494907,902.57,900.7,0.69288267]
[1768037410601,2.7494907,902.57,900.71,0.69288267]
[1768037410801,2.7494907,902.57,900.72,0.69288267]
[1768037411001,2.7494907,902.57,900.73,0.69288267]
[1768037411297,2.7494907,902.57,900.74,0.69288267]
[1768037411499,2.7494907,902.57,900.75,0.69288267]
[1768037411697,2.7494907,902.57,900.76,0.69288267]
[1768037411997,2.7494907,902.57,900.77,0.69288267]
[1768037412300,2.7494907,902.57,900.78,0.69288267]
[1768037412499,2.7494907,902.57,900.79,0.69288267]
[1768037412701,2.7494907,902.57,900.8,0.69288267]
[1768037412901,2.7494907,902.57,900.81,0.69288267]
[1768037413100,2.7494907,902.57,900.82,0.69288267]
[1768037413302,2.7494907,902.57,900.83,0.69288267]
[1768037413498,2.7494907,902.57,900.84,0.69288267]
[1768037413699,2.7494907,902.61,900.85,0.69288267]
[1768037413898,2.7494907,902.61,900.86,0.69288267]
[1768037414098,2.7494907,902.61,900.87,0.69288267]
[1768037414300,2.7494907,902.61,900.58,0.83084117]
[1768037414498,2.7494907,902.61,900.59,0.69257616]
[1768037414698,2.7494907,902.61,900.6,0.69257616]
[1768037414897,2.7494907,902.61,900.61,0.69257616]
[1768037415098,2.7494907,902.61,900.62,0.69257616]
[1768037415297,2.7494907,902.61,900.63,0.69257616]
[1768037415499,2.7494907,902.61,900.64,0.69257616]
[1768037415700,2.7494907,902.62,900.65,0.69257616]
[1768037415903,2.7494907,902.62,900.66,0.69257616]
[1768037416101,2.7494907,902.62,900.67,0.69257616]
[1768037416305,2.7494907,902.62,900.68,0.69257616]
[1768037416501,2.7494907,902.62,900.69,0.69257616]
[1768037416705,2.7494907,902.62,900.7,0.69257616]
[1768037416901,2.7494907,902.62,900.71,0.69257616]
[1768037417105,2.7494907,902.62,900.72,0.69257616]
[1768037417306,2.7494907,902.62,900.73,0.69257616]
[1768037417501,2.7494907,902.62,900.58,0.83084117]
[1768037417502,2.7494907,902.62,900.74,0.69257616]
[1768037417706,2.7494907,902.62,900.75,0.69257616]
[1768037417906,2.7494907,902.62,900.76,0.69257616]
[1768037418207,2.7494907,902.62,900.77,0.69257616]
[1768037418406,2.7494907,902.62,900.78,0.69257616]
[1768037418607,2.7494907,902.62,900.79,0.69257616]
[1768037418805,2.7494907,902.62,900.8,0.69257616]
[1768037419003,2.7494907,902.62,900.81,0.69257616]
[1768037419303,2.7494907,902.62,900.82,0.69257616]
[1768037419507,2.7494907,902.62,900.83,0.69257616]
[1768037419705,2.7494907,902.62,900.84,0.69257616]
[1768037419908,2.7494907,902.62,900.85,0.69257616]
[1768037420208,2.7494907,902.62,900.86,0.69257616]
[1768037420410,2.7494907,902.62,900.87,0.69257616]
[1768037420609,2.7494907,902.62,900.58,0.83084117]
[1768037420809,2.7494907,902.62,900.59,0.69259134]
[1768037421008,2.7494907,902.62,900.6,0.69259134]
[1768037421207,2.7494907,902.62,900.61,0.69259134]
[1768037421406,2.7494907,902.61,900.62,0.69259134]
[1768037421604,2.7494907,902.61,900.63,0.69259134]
[1768037421805,2.7494907,902.61,900.64,0.69259134]
[1768037422003,2.7494907,902.6,900.65,0.69259134]
[1768037422204,2.7494907,902.6,900.66,0.69259134]
[1768037422510,2.7494907,902.6,900.67,0.69259134]
[1768037422709,2.7494907,902.6,900.68,0.69259134]
[1768037423010,2.7494907,902.57,900.69,0.69259134]
[1768037423205,2.7494907,902.57,900.57,4.1367037]
[1768037423412,2.7494907,902.57,900.58,0.69269952]
[1768037423612,2.7494907,902.43,900.59,0.69269952]
[1768037423809,2.7494907,902.43,900.6,0.69269952]
[1768037424013,2.7494907,902.43,900.61,0.69269952]
[1768037424211,2.7494907,902.43,900.62,0.69269952]
[1768037424413,2.7494907,902.43,900.63,0.69269952]
[1768037424614,2.7494907,902.43,900.64,0.69269952]
[1768037424815,2.7494907,902.43,900.65,0.69269952]
[1768037425013,2.7494907,902.43,900.66,0.69269952]
[1768037425210,2.7494907,902.43,900.67,0.69269952]
[1768037425412,2.7494907,902.43,900.68,0.69269952]
[1768037425615,2.7494907,902.43,900.69,0.69269952]
[1768037425812,2.7494907,902.43,900.7,0.69269952]
[1768037426016,2.7494907,902.43,900.57,4.1367037]
[1768037426312,2.7494907,902.43,900.58,0.69277776]
[1768037426518,2.7494907,902.42,900.59,0.69277776]
[1768037426718,2.7494907,902.42,900.6,0.69277776]
[1768037426914,2.7494907,902.42,900.61,0.69277776]
[1768037427118,2.7494907,902.42,900.62,0.69277776]
[1768037427316,2.7494907,902.42,900.63,0.69277776]
[1768037427517,2.7494907,902.42,900.64,0.69277776]
[1768037427720,2.7494907,902.42,900.65,0.69277776]
[1768037428014,2.7494907,902.42,900.66,0.69277776]
[1768037428219,2.7494907,902.42,900.67,0.69277776]
[1768037428419,2.7494907,902.42,900.68,0.69277776]
[1768037428619,2.7494907,902.42,900.69,0.69277776]
[1768037428815,2.7494907,902.42,900.7,0.69277776]
[1768037429015,2.7494907,902.42,900.71,0.69277776]
[1768037429317,2.7494907,902.42,900.57,4.1367037]
[1768037429521,2.7494907,902.42,900.58,0.6938313]
[1768037429717,2.7494907,902.41,900.59,0.6938313]
[1768037429922,2.7494907,902.41,900.6,0.6938313]
[1768037430120,2.7494907,902.41,900.61,0.6938313]
[1768037430317,2.7494907,902.41,900.62,0.6938313]
[1768037430521,2.7494907,902.41,900.63,0.6938313]
[1768037430819,2.7494907,902.41,900.64,0.6938313]
[1768037431017,2.7494907,902.41,900.65,0.6938313]
[1768037431222,2.7494907,902.4,900.66,0.6938313]
[1768037431518,2.7494907,902.4,900.67,0.6938313]
[1768037431721,2.7494907,902.4,900.68,0.6938313]
[1768037431919,2.7494907,902.4,900.69,0.6938313]
[1768037432120,2.7494907,902.4,900.7,0.6938313]
[1768037432420,2.7494907,902.39,900.71,0.6938313]
[1768037432725,2.7494907,902.39,900.72,0.6938313]
[1768037432926,2.7494907,902.39,900.73,0.6938313]
[1768037433126,2.7494907,902.39,900.74,0.6938313]
[1768037433324,2.7494907,902.5,900.75,0.6938313]
[1768037433528,2.7494907,902.5,900.76,0.6938313]
[1768037433728,2.7494907,902.5,900.77,0.6938313]
[1768037434030,2.7494907,902.5,900.78,0.6938313]
[1768037434227,2.7494907,902.5,900.79,0.6938313]
[1768037434422,2.7494907,902.49,900.8,0.6938313]
[1768037434726,2.7494907,902.49,900.81,0.6938313]
[1768037434926,2.7494907,902.49,900.82,0.6938313]
[1768037435127,2.7494907,902.49,900.83,0.6938313]
[1768037435427,2.7494907,902.47,900.84,0.6938313]
[1768037435722,2.7494907,902.47,900.61,0.83084117]
[1768037435723,2.7494907,902.47,900.85,0.6938313]
[1768037436027,2.7494907,902.47,900.86,0.6938313]
[1768037436227,2.7494907,902.47,900.87,0.6938313]
[1768037436427,0.19302449,902.07,900.88,0.6938313]
[1768037436627,0.19302449,902.07,900.89,0.6938313]
[1768037436827,0.19302449,902.07,900.9,0.6938313]
[1768037437025,0.19302449,902.07,900.91,0.6938313]
[1768037437224,0.19302449,902.07,900.63,0.83084117]
[1768037437428,0.19302449,902.07,900.64,0.69522148]
[1768037437623,0.19302449,902.07,900.65,0.69522148]
[1768037437828,0.19302449,902.07,900.66,0.69522148]
[1768037438029,0.19302449,902.07,900.67,0.69522148]
[1768037438228,0.19302449,902.07,900.68,0.69522148]
[1768037438429,0.19302449,902.07,900.69,0.69522148]
[1768037438630,0.19302449,902.07,900.7,0.69522148]
[1768037438826,0.19302449,902.07,900.71,0.69522148]
[1768037439030,0.19302449,902.07,900.72,0.69522148]
[1768037439227,0.19302449,902.07,900.73,0.69522148]
[1768037439426,0.19302449,902.07,900.61,0.83084117]
[1768037439427,0.19302449,902.07,900.74,0.69522148]
[1768037439727,0.19302449,902.07,900.75,0.69522148]
[1768037439930,0.19302449,902.07,900.76,0.69522148]
[1768037440130,0.19302449,902.07,900.77,0.69522148]
[1768037440432,0.19302449,902.07,900.78,0.69522148]
[1768037440632,0.19302449,902.07,900.79,0.69522148]
[1768037440831,0.19302449,902.07,900.8,0.69522148]
[1768037441032,0.19302449,902.07,900.81,0.69522148]
[1768037441234,0.19302449,902.07,900.82,0.69522148]
[1768037441432,0.19302449,902.07,900.83,0.69522148]
[1768037441636,0.19302449,902.07,900.84,0.69522148]
[1768037441935,0.19302449,902.07,900.85,0.69522148]
[1768037442232,0.19302449,902.07,900.86,0.69522148]
[1768037442435,0.19302449,902.07,900.87,0.69522148]
[1768037442734,0.19302449,902.07,900.88,0.69522148]
[1768037442931,0.19302449,902.07,900.89,0.69522148]
[1768037443136,0.19302449,902.07,900.9,0.69522148]
[1768037443336,0.19302449,902.07,900.91,0.69522148]
[1768037443536,0.19302449,902.07,900.92,0.69522148]
[1768037443832,0.19302449,902.07,900.93,0.69522148]
[1768037444032,0.19302449,902.07,900.64,0.83084117]
[1768037444232,0.19302449,902.07,900.65,1.52610105]
[1768037444436,0.19302449,902.07,900.66,0.69525988]
[1768037444635,0.19302449,902.07,900.64,0.83084117]
[1768037444636,0.19302449,902.07,900.67,0.69525988]
[1768037444931,0.19302449,902.07,900.68,0.69525988]
[1768037445133,0.19302449,902.07,900.69,0.69525988]
[1768037445336,0.19302449,902.07,900.7,0.69525988]
[1768037445538,0.19302449,902.07,900.71,0.69525988]
[1768037445732,0.19302449,902.07,900.72,0.69525988]
[1768037445933,0.19302449,902.07,900.73,0.69525988]
[1768037446133,0.19302449,902.07,900.74,0.69525988]
[1768037446333,0.19302449,902.07,900.75,0.69525988]
[1768037446535,0.19302449,902.07,900.76,0.69525988]
[1768037446736,0.19302449,902.07,900.77,0.69525988]
[1768037446939,0.19302449,902.07,900.78,0.69525988]
[1768037447235,0.19302449,902.07,900.79,0.69525988]
[1768037447435,0.19302449,902.07,900.8,0.69525988]
[1768037447636,0.19302449,902.07,900.81,0.69525988]
[1768037447840,0.19302449,902.07,900.82,0.69525988]
[1768037448040,0.19302449,902.07,900.83,0.69525988]
[1768037448241,0.19302449,902.07,900.84,0.69525988]
[1768037448440,0.19302449,902.07,900.85,0.69525988]
[1768037448642,0.19302449,902.07,900.86,0.69525988]
[1768037448942,0.19302449,902.07,900.87,0.69525988]
[1768037449236,0.19302449,902.07,900.88,0.69525988]
[1768037449441,0.19302449,902.07,900.89,0.69525988]
[1768037449641,0.19302449,902.07,900.9,0.69525988]
[1768037449839,0.19302449,902.07,900.91,0.69525988]
[1768037450043,0.19302449,902.07,900.92,0.69525988]
[1768037450240,0.19302449,902.07,900.93,0.69525988]
[1768037450441,0.19302449,902.07,900.64,0.83084117]
[1768037450642,0.19302449,902.07,900.65,0.69544095]
[1768037450842,0.19302449,902.07,900.66,0.69544095]
[1768037451045,0.19302449,902.07,900.67,0.69544095]
[1768037451346,0.19302449,902.07,900.68,0.69544095]
[1768037451539,0.19302449,902.07,900.69,0.69544095]
[1768037451742,0.19302449,902.07,900.7,0.69544095]
[1768037451941,0.19302449,902.07,900.71,0.69544095]
[1768037452145,0.19302449,902.07,900.72,0.69544095]
[1768037452341,0.19302449,902.07,900.73,0.69544095]
[1768037452542,0.19302449,902.07,900.74,0.69544095]
[1768037452744,0.19302449,902.07,900.75,0.69544095]
[1768037452946,0.19302449,902.07,900.76,0.69544095]
[1768037453145,0.19302449,902.07,900.77,0.69544095]
[1768037453346,0.19302449,902.07,900.78,0.69544095]
[1768037453649,0.19302449,902.07,900.67,0.83084117]
[1768037453650,0.19302449,902.07,900.79,0.69544095]
[1768037453944,0.19302449,902.07,900.8,0.69544095]
[1768037454148,0.19302449,902.07,900.81,0.69544095]
[1768037454448,0.19302449,902.07,900.82,0.69544095]
[1768037454746,0.19302449,902.07,900.83,0.69544095]
[1768037454947,0.19302449,902.07,900.84,0.69544095]
[1768037455243,0.19302449,902.07,900.85,0.69544095]
[1768037455447,0.19302449,902.07,900.86,0.69544095]
[1768037455747,0.19302449,902.07,900.87,0.69544095]
[1768037456047,0.19302449,902.07,900.88,0.69544095]
[1768037456245,0.19302449,902.07,900.89,0.69544095]
[1768037456448,0.19302449,902.07,900.9,0.69544095]
[1768037456646,0.19302449,902.07,900.91,0.69544095]
[1768037456849,0.19302449,902.07,900.92,0.69544095]
[1768037457050,0.19302449,902.07,900.93,0.69544095]
[1768037457247,0.19302449,902.07,900.94,0.69544095]
[1768037457450,0.19302449,902.07,900.95,0.69544095]
[1768037457650,0.19302449,902.07,900.96,0.69544095]
[1768037457944,0.19302449,902.07,900.97,0.69544095]
[1768037458147,0.19302449,902.07,900.68,0.83084117]
[1768037458350,0.19302449,902.07,900.69,0.69557852]
[1768037458651,0.19302449,902.07,900.7,0.69557852]
[1768037458848,0.19302449,902.07,900.71,0.69557852]
[1768037459051,0.19302449,902.07,900.68,0.83084117]
[1768037459052,0.19302449,902.07,900.72,0.69557852]
[1768037459351,0.19302449,902.07,900.73,0.69557852]
[1768037459551,0.19302449,902.07,900.74,0.69557852]
[1768037459752,0.19302449,902.07,900.68,0.83084117]
[1768037459753,0.19302449,902.07,900.75,0.69557852]
[1768037459949,0.19302449,902.07,900.76,0.69557852]
[1768037460153,0.19302449,902.07,900.77,0.69557852]
[1768037460352,0.19302449,902.07,900.78,0.69557852]
[1768037460552,0.19302449,902.07,900.79,0.69557852]
[1768037460752,0.19302449,902.07,900.8,0.69557852]
[1768037460954,0.19302449,902.07,900.81,0.69557852]
[1768037461150,0.19302449,902.07,900.82,0.69557852]
[1768037461354,0.19302449,902.07,900.83,0.69557852]
[1768037461556,0.19302449,902.07,900.84,0.69557852]
[1768037461754,0.19302449,902.07,900.85,0.69557852]
[1768037462055,0.19302449,902.07,900.86,0.69557852]
[1768037462253,0.19302449,902.07,900.87,0.69557852]
[1768037462452,0.19302449,902.07,900.88,0.69557852]
[1768037462756,0.19302449,902.07,900.89,0.69557852]
[1768037462955,0.19302449,902.07,900.9,0.69557852]
[1768037463156,0.19302449,902.07,900.91,0.69557852]
[1768037463454,0.19302449,902.07,900.92,0.69498487]
[1768037463658,0.19302449,902.07,900.63,0.83084117]
[1768037463855,0.19302449,902.07,900.64,0.69498435]
[1768037464056,0.19302449,902.07,900.65,0.69498435]
[1768037464255,0.19302449,902.07,900.66,0.69498435]
[1768037464560,0.19302449,902.07,900.67,0.69498435]
[1768037464761,0.19302449,902.07,900.68,0.69498435]
[1768037464962,0.19302449,902.07,900.69,0.69498435]
[1768037465157,0.19302449,902.07,900.7,0.69498435]
[1768037465362,0.19302449,902.07,900.71,0.69498435]
[1768037465558,0.19302449,902.07,900.72,0.69498435]
[1768037465762,0.19302449,902.07,900.73,0.69498435]
[1768037466058,0.19302449,902.07,900.74,0.69498435]
[1768037466363,0.19302449,902.07,900.75,0.69498435]
[1768037466558,0.19302449,902.07,900.76,0.69498435]
[1768037466757,0.19302449,902.07,900.77,0.69498435]
[1768037466961,0.19302449,902.07,900.78,0.69498435]
[1768037467261,0.19302449,902.07,900.79,0.69498435]
[1768037467458,0.19302449,902.07,900.8,0.69498435]
[1768037467660,0.19302449,902.07,900.57,4.1367037]
[1768037467864,0.19302449,902.07,900.58,0.69471861]
[1768037468062,0.19302449,902.07,900.59,0.69471861]
[1768037468263,0.19302449,902.07,900.6,0.69471861]
[1768037468560,0.19302449,902.07,900.61,0.69471861]
[1768037468860,0.19302449,902.07,900.62,0.69471861]
[1768037469063,0.19302449,902.07,900.63,0.69471861]
[1768037469260,0.19302449,902.07,900.64,0.69471861]
[1768037469560,0.19302449,902.07,900.65,0.69471861]
[1768037469760,0.19302449,902.07,900.66,0.69471861]
[1768037469961,0.19302449,902.07,900.67,0.69471861]
[1768037470164,0.19302449,902.07,900.68,0.69471861]
[1768037470364,0.19302449,902.07,900.69,0.69471861]
[1768037470564,0.19302449,902.07,900.28,0.83084117]
[1768037470765,0.19302449,902.07,900.29,0.69445158]
[1768037470959,0.19302449,902.07,900.3,0.69445158]
[1768037471163,0.19302449,902.07,900.31,0.69445158]
[1768037471362,2.7494907,902.03,900.32,0.69445158]
[1768037471663,2.7494907,902.03,900.33,0.69445158]
[1768037471863,2.7494907,902.03,900.08,0.83084117]
[1768037472062,2.7494907,901.87,900.09,0.69416707]
[1768037472260,2.7494907,901.87,900.1,0.69416707]
[1768037472459,2.7494907,901.87,900.11,0.69416707]
[1768037472660,2.7494907,901.87,899.72,0.83084117]
[1768037472861,2.7494907,901.87,899.73,0.69317169]
[1768037473165,0.19302449,902.07,899.8,0.83084117]
[1768037473166,2.7494907,901.76,899.8,0.83084117]
[1768037473460,2.7494907,901.81,899.81,0.69317169]
[1768037473659,2.7494907,901.81,899.82,0.69317169]
[1768037473861,2.7494907,901.81,899.83,0.69317169]
[1768037474064,2.7494907,901.79,899.84,0.69317169]
[1768037474262,2.7494907,901.79,899.85,0.69317169]
[1768037474459,2.7494907,901.83,899.86,0.69317169]
[1768037474665,2.7494907,901.83,899.57,0.83084117]
[1768037474863,2.7494907,901.83,899.58,0.69136379]
[1768037475066,2.7494907,901.8,899.59,0.69136379]
[1768037475265,2.7494907,901.8,899.6,0.69136379]
[1768037475562,2.7494907,901.84,899.61,0.69136379]
[1768037475762,2.7494907,901.84,899.62,0.69136379]
[1768037475959,2.7494907,901.84,899.63,0.69136379]
[1768037476164,2.7494907,901.84,899.64,0.69136379]
[1768037476366,2.7494907,901.84,899.65,0.69136379]
[1768037476662,2.7494907,901.9,899.66,0.69136379]
[1768037476863,2.7494907,901.9,899.67,0.69136379]
[1768037477062,2.7494907,901.9,899.68,0.69136379]
[1768037477262,2.7494907,901.9,899.69,0.69136379]
[1768037477461,2.7494907,901.9,899.7,0.69136379]
[1768037477665,2.7494907,901.94,899.71,0.69136379]
[1768037477961,2.7494907,901.94,899.72,0.69136379]
[1768037478165,2.7494907,901.94,899.73,0.69136379]
[1768037478364,2.7494907,901.94,899.74,0.69136379]
[1768037478565,2.7494907,901.94,899.75,0.69136379]
[1768037478764,2.7494907,901.98,899.76,0.69136379]
[1768037478964,2.7494907,901.98,899.77,0.69136379]
[1768037479167,2.7494907,902.02,899.78,0.69136379]
[1768037479364,2.7494907,902.02,899.49,0.83084117]
[1768037479564,2.7494907,902.02,899.5,0.68863983]
[1768037479769,2.7494907,902.02,899.51,0.68863983]
[1768037479963,2.7494907,902.02,899.52,0.68863983]
[1768037480164,2.7494907,902.02,899.53,0.68863983]
[1768037480369,2.7494907,902.05,899.54,0.68863983]
[1768037480669,2.7494907,902.05,899.55,0.68863983]
[1768037480966,2.7494907,902.05,899.56,0.68863983]
[1768037481170,2.7494907,902.05,899.57,0.68863983]
[1768037481370,0.19302449,902.07,899.58,0.68863983]
[1768037481570,0.19302449,902.07,899.59,0.68863983]
[1768037481766,0.19302449,902.07,899.6,0.68863983]
[1768037482069,0.19302449,902.07,899.61,0.68863983]
[1768037482268,2.94251519,902.07,899.62,0.68863983]